{"text_format":"1","workbook":"xlsx","n_sheets":2,"sheets":["Torony","Értékkészletek"],"not_rendered":{"charts":0,"images":0,"macros":1,"external_links":0,"defined_names":0,"comments":0,"pivot_tables":0},"unopened":[],"bounds":{"document_bytes":16777216,"sheet_cells":100000,"rows_first":2000,"rows_last":500,"rows_between":2000,"halvings":0,"cell_chars":16384,"cell_head_chars":4096},"cells_cut":0,"cells_raw":0,"read":"whole","date_system":"1900"}

{"sheet":"Torony","index":0,"n_rows":55,"n_cols":11,"rows_kept":55,"cut":false,"hidden":false,"merged":[[12,1,12,2],[2,1,2,2],[3,1,3,2],[4,1,4,2],[5,1,5,2],[6,1,6,2],[7,1,7,2],[8,1,8,2],[9,1,9,2],[10,1,10,2],[11,1,11,2],[29,1,29,2],[13,1,13,2],[14,1,14,2],[15,1,15,2],[20,1,20,2],[21,1,21,2],[22,1,22,2],[39,1,39,2],[16,0,19,3],[34,0,36,3],[0,0,0,3],[1,0,1,3],[30,1,30,2],[31,1,31,2],[32,1,32,2],[33,1,33,2],[37,1,37,2],[38,1,38,2],[24,1,24,2],[25,1,25,2],[27,1,27,2],[26,1,26,2],[28,1,28,2]]}
["Torony xml előállító",null,null,null,null,null,null,"<?xml version=\"1.0\" encoding=\"UTF-8\" standalone=\"no\"?>",null,null,{"$f":"H1","v":"<?xml version=\"1.0\" encoding=\"UTF-8\" standalone=\"no\"?>"}]
["Terv alapadatok",null,null,null,null,null,null,"<terv xmlns=\"http://hk.nmhh.hu/schemas/terv-eho\">",null,null,{"$f":"H2","v":"<terv xmlns=\"http://hk.nmhh.hu/schemas/terv-eho\">"}]
["EHO verzió","1.4.0",null,null,null,null,null,"<eho_verzió>",{"$f":"B3","v":"1.4.0"},"</eho_verzió>",{"$f":"CHAR(9)&CONCATENATE(H3,I3,J3)","v":"\t<eho_verzió>1.4.0</eho_verzió>"}]
["Terv azonosító",1000000001,null,null,null,null,null,"<terv_azonosító>",{"$f":"B4","v":1000000001},"</terv_azonosító>","\t<terv_azonosító>1000000001</terv_azonosító>"]
["Terv típusa","építési",null,null,null,null,null,"<terv_típusa>","építési","</terv_típusa>","\t<terv_típusa>építési</terv_típusa>"]
["Terv megnevezése","Torony építése",null,null,null,null,null,"<terv_megnevezése>","Torony építése","</terv_megnevezése>","\t<terv_megnevezése>Torony építése</terv_megnevezése>"]
["EOV koordináták\n(Automatikusan a Torony pozíciójához képesti 4mx4m-es téglalap)",{"$f":"F26","v":"874070,26 325689,86 874070,26 325693,86 874066,26 325693,86 874066,26 325689,86 874070,26 325689,86"},null,null,null,null,null,"<eov_koordináták><poligon>",{"$f":"SUBSTITUTE(B7,\",\",\".\")","v":"874070.26 325689.86 874070.26 325693.86 874066.26 325693.86 874066.26 325689.86 874070.26 325689.86"},"</poligon></eov_koordináták>","\t<eov_koordináták><poligon>874070.26 325689.86 874070.26 325693.86 874066.26 325693.86 874066.26 325689.86 874070.26 325689.86</poligon></eov_koordináták>"]
["Tervező neve","tervező neve",null,null,null,null,null,"<tervező_neve>","tervező neve","</tervező_neve>","\t<tervező_neve>tervező neve</tervező_neve>"]
["Tervező jogosultsága","HI-V",null,null,null,null,null,"<tervező_jogosultsága>","HI-V","</tervező_jogosultsága>","\t<tervező_jogosultsága>HI-V</tervező_jogosultsága>"]
["Tervező kamarai száma","12-34567",null,null,null,null,null,"<tervező_kamarai_száma>","12-34567","</tervező_kamarai_száma>","\t<tervező_kamarai_száma>12-34567</tervező_kamarai_száma>"]
["Tervező e-mail címe","tervezo@tervezo.hu",null,null,null,null,null,"<tervező_e-mail_címe>","tervezo@tervezo.hu","</tervező_e-mail_címe>","\t<tervező_e-mail_címe>tervezo@tervezo.hu</tervező_e-mail_címe>"]
["Építtető adóazonosító","12345678-1-12",null,null,null,null,null,"<építtető_adóazonosító>","12345678-1-12","</építtető_adóazonosító>","\t<építtető_adóazonosító>12345678-1-12</építtető_adóazonosító>"]
["Kapcsolódó engedély száma",null,null,null,null,null,null,"<kapcsolódó_engedély_száma>",0,"</kapcsolódó_engedély_száma>","\t<kapcsolódó_engedély_száma>0</kapcsolódó_engedély_száma>"]
["Tervező program neve","eT",null,null,null,null,null,"<tervező_program_neve>","eT","</tervező_program_neve>","\t<tervező_program_neve>eT</tervező_program_neve>"]
["Tervező program verziója","7.0",null,null,null,null,null,"<tervező_program_verziója>","7.0","</tervező_program_verziója>","\t<tervező_program_verziója>7.0</tervező_program_verziója>"]
["e-Napló",null,null,null,null,null,null,"<e_napló>",0,"</e_napló>","\t<e_napló>0</e_napló>"]
["Torony objektum adatai",null,null,null,null,null,null,"<eho_objektumok>",null,null,{"$f":"CHAR(9)&H17","v":"\t<eho_objektumok>"}]
[null,null,null,null,null,null,null,"<objektumok>",null,null,{"$f":"CHAR(9)&CHAR(9)&H18","v":"\t\t<objektumok>"}]
[null,null,null,null,null,null,null,"<torony>",null,null,{"$f":"CHAR(9)&CHAR(9)&CHAR(9)&H19","v":"\t\t\t<torony>"}]
[null,null,null,null,{"$f":"B24+2","v":874070.26},{"$f":"C24-2","v":325689.86},{"$f":"CONCATENATE(E20,\" \",F20)","v":"874070,26 325689,86"},"<azonosító>",{"$f":"B21","v":"10000000011"},"</azonosító>",{"$f":"CHAR(9)&CHAR(9)&CHAR(9)&CHAR(9)&CONCATENATE(H20,I20,J20)","v":"\t\t\t\t<azonosító>10000000011</azonosító>"}]
["Eho azonosító",{"$f":"CONCATENATE(B22,1)","v":"10000000011"},null,null,{"$f":"B24+2","v":874070.26},{"$f":"C24+2","v":325693.86},{"$f":"CONCATENATE(E21,\" \",F21)","v":"874070,26 325693,86"},"<eho_azonosító>",{"$f":"B21","v":"10000000011"},"</eho_azonosító>",{"$f":"CHAR(9)&CHAR(9)&CHAR(9)&CHAR(9)&CONCATENATE(H21,I21,J21)","v":"\t\t\t\t<eho_azonosító>10000000011</eho_azonosító>"}]
["Terv azonosító",{"$f":"B4","v":1000000001},null,null,{"$f":"B24-2","v":874066.26},{"$f":"C24+2","v":325693.86},"874066,26 325693,86","<terv_azonosító>",{"$f":"B22","v":1000000001},"</terv_azonosító>",{"$f":"CHAR(9)&CHAR(9)&CHAR(9)&CHAR(9)&CONCATENATE(H22,I22,J22)","v":"\t\t\t\t<terv_azonosító>1000000001</terv_azonosító>"}]
["Tervezési státusz","Meglévő saját",null,null,{"$f":"B24-2","v":874066.26},{"$f":"C24-2","v":325689.86},"874066,26 325689,86","<tervezési_státusz>","Meglévő saját","</tervezési_státusz>",{"$f":"CHAR(9)&CHAR(9)&CHAR(9)&CHAR(9)&CONCATENATE(H23,I23,J23)","v":"\t\t\t\t<tervezési_státusz>Meglévő saját</tervezési_státusz>"}]
["EOV koordináták (y,x)",874068.26,325691.86,null,null,null,null,"<eov_koordináták>",null,null,{"$f":"CHAR(9)&CHAR(9)&CHAR(9)&CHAR(9)&CONCATENATE(H24,I24,J24)","v":"\t\t\t\t<eov_koordináták>"}]
["Szolgáltatói azonosító","T-234",null,null,null,{"$f":"CONCATENATE(G20,\" \",G21,\" \",G22)","v":"874070,26 325689,86 874070,26 325693,86 874066,26 325693,86"},null,"<pont>",{"$f":"SUBSTITUTE(CONCATENATE(B24,\" \",C24),\",\",\".\")","v":"874068.26 325691.86"},"</pont>",{"$f":"CHAR(9)&CHAR(9)&CHAR(9)&CHAR(9)&CHAR(9)&CONCATENATE(H25,I25,J25)","v":"\t\t\t\t\t<pont>874068.26 325691.86</pont>"}]
["Objektum státusz","Tervezett",null,null,null,{"$f":"CONCATENATE(F25,\" \",G23,\" \",G20)","v":"874070,26 325689,86 874070,26 325693,86 874066,26 325693,86 874066,26 325689,86 874070,26 325689,86"},null,null,null,"</eov_koordináták>",{"$f":"CHAR(9)&CHAR(9)&CHAR(9)&CHAR(9)&CONCATENATE(H26,I26,J26)","v":"\t\t\t\t</eov_koordináták>"}]
["Orientáció",90,null,null,null,null,null,"<szolgáltatói_azonosító>",{"$f":"B25","v":"T-234"},"</szolgáltatói_azonosító>",{"$f":"CHAR(9)&CHAR(9)&CHAR(9)&CHAR(9)&CONCATENATE(H27,I27,J27)","v":"\t\t\t\t<szolgáltatói_azonosító>T-234</szolgáltatói_azonosító>"}]
["Engedélyes","Nem ismert",null,null,null,null,null,"<objektum_státusz>","Tervezett","</objektum_státusz>",{"$f":"CHAR(9)&CHAR(9)&CHAR(9)&CHAR(9)&CONCATENATE(H28,I28,J28)","v":"\t\t\t\t<objektum_státusz>Tervezett</objektum_státusz>"}]
["Engedély szám",null,null,null,null,null,null,"<orientáció>",90,"</orientáció>",{"$f":"CHAR(9)&CHAR(9)&CHAR(9)&CHAR(9)&CHAR(9)&CONCATENATE(H29,I29,J29)","v":"\t\t\t\t\t<orientáció>90</orientáció>"}]
["EOMA",100.1,null,null,null,null,null,"<engedélyes>","Nem ismert","</engedélyes>",{"$f":"CHAR(9)&CHAR(9)&CHAR(9)&CHAR(9)&CONCATENATE(H30,I30,J30)","v":"\t\t\t\t<engedélyes>Nem ismert</engedélyes>"}]
["Eközmű adatszolgáltatási szint","Tervezési",null,null,null,null,null,"<engedély_szám>",0,"</engedély_szám>","\t\t\t\t<engedély_szám>0</engedély_szám>"]
["Eközmű adatelőállítás módja","Nyílt árkos bemérés",null,null,null,null,null,"<eoma>",{"$f":"SUBSTITUTE(B30,\",\",\".\")","v":"100.1"},"</eoma>","\t\t\t\t<eoma>100.1</eoma>"]
["Beépítés éve",2025,null,null,null,null,null,"<eközmű_adatszolgáltatási_szint>","Tervezési","</eközmű_adatszolgáltatási_szint>","\t\t\t\t<eközmű_adatszolgáltatási_szint>Tervezési</eközmű_adatszolgáltatási_szint>"]
["Magasság",75,null,null,null,null,null,"<eközmű_adatelőállítás_módja>","Nyílt árkos bemérés","</eközmű_adatelőállítás_módja>","\t\t\t\t<eközmű_adatelőállítás_módja>Nyílt árkos bemérés</eközmű_adatelőállítás_módja>"]
["Tulajdonos objektum adatai",null,null,null,null,null,null,"<beépítés_éve>",2025,"</beépítés_éve>","\t\t\t\t<beépítés_éve>2025</beépítés_éve>"]
[null,null,null,null,null,null,null,"<magasság>",{"$f":"SUBSTITUTE(B34,\",\",\".\")","v":"75"},"</magasság>","\t\t\t\t<magasság>75</magasság>"]
[null,null,null,null,null,null,null,"</torony>",null,null,{"$f":"CHAR(9)&CHAR(9)&CHAR(9)&H37","v":"\t\t\t</torony>"}]
["Megnevezés","AH Infrastruktúra Szolgáltató Zrt.",null,null,null,null,null,"<szereplő>",null,null,{"$f":"CHAR(9)&CHAR(9)&CHAR(9)&H38","v":"\t\t\t<szereplő>"}]
["Adószám","32606605-2-41",null,null,null,null,null,"<azonosító>",2,"</azonosító>",{"$f":"CHAR(9)&CHAR(9)&CHAR(9)&CHAR(9)&CONCATENATE(H39,I39,J39)","v":"\t\t\t\t<azonosító>2</azonosító>"}]
["Szereplő Típus","gazdasági társaság",null,null,null,null,null,"<megnevezés>",{"$f":"B38","v":"AH Infrastruktúra Szolgáltató Zrt."},"</megnevezés>",{"$f":"CHAR(9)&CHAR(9)&CHAR(9)&CHAR(9)&CONCATENATE(H40,I40,J40)","v":"\t\t\t\t<megnevezés>AH Infrastruktúra Szolgáltató Zrt.</megnevezés>"}]
[null,null,null,null,null,null,null,"<adószám>",{"$f":"B39","v":"32606605-2-41"},"</adószám>",{"$f":"CHAR(9)&CHAR(9)&CHAR(9)&CHAR(9)&CONCATENATE(H41,I41,J41)","v":"\t\t\t\t<adószám>32606605-2-41</adószám>"}]
[null,null,null,null,null,null,null,"<szereplo_tipus>",{"$f":"B40","v":"gazdasági társaság"},"</szereplo_tipus>",{"$f":"CHAR(9)&CHAR(9)&CHAR(9)&CHAR(9)&CONCATENATE(H42,I42,J42)","v":"\t\t\t\t<szereplo_tipus>gazdasági társaság</szereplo_tipus>"}]
[null,null,null,null,null,null,null,"</szereplő>",null,null,{"$f":"CHAR(9)&CHAR(9)&CHAR(9)&H43","v":"\t\t\t</szereplő>"}]
[null,null,null,null,null,null,null,"</objektumok>",null,null,{"$f":"CHAR(9)&CHAR(9)&H44","v":"\t\t</objektumok>"}]
[null,null,null,null,null,null,null,"<kapcsolatok>",null,null,{"$f":"CHAR(9)&CHAR(9)&H45","v":"\t\t<kapcsolatok>"}]
[null,null,null,null,null,null,null,"<felelős>",null,null,{"$f":"CHAR(9)&CHAR(9)&CHAR(9)&H46","v":"\t\t\t<felelős>"}]
[null,null,null,null,null,null,null,"<kiinduló_objektum>",{"$f":"I39","v":2},"</kiinduló_objektum>",{"$f":"CHAR(9)&CHAR(9)&CHAR(9)&CHAR(9)&CONCATENATE(H47,I47,J47)","v":"\t\t\t\t<kiinduló_objektum>2</kiinduló_objektum>"}]
[null,null,null,null,null,null,null,"<vég_objektum>",{"$f":"I20","v":"10000000011"},"</vég_objektum>",{"$f":"CHAR(9)&CHAR(9)&CHAR(9)&CHAR(9)&CONCATENATE(H48,I48,J48)","v":"\t\t\t\t<vég_objektum>10000000011</vég_objektum>"}]
[null,null,null,null,null,null,null,"<tulajdonos>",100,"</tulajdonos>",{"$f":"CHAR(9)&CHAR(9)&CHAR(9)&CHAR(9)&CONCATENATE(H49,I49,J49)","v":"\t\t\t\t<tulajdonos>100</tulajdonos>"}]
[null,null,null,null,null,null,null,"<szolgáltató>",100,"</szolgáltató>",{"$f":"CHAR(9)&CHAR(9)&CHAR(9)&CHAR(9)&CONCATENATE(H50,I50,J50)","v":"\t\t\t\t<szolgáltató>100</szolgáltató>"}]
[null,null,null,null,null,null,null,"<üzemeltető>",100,"</üzemeltető>",{"$f":"CHAR(9)&CHAR(9)&CHAR(9)&CHAR(9)&CONCATENATE(H51,I51,J51)","v":"\t\t\t\t<üzemeltető>100</üzemeltető>"}]
[null,null,null,null,null,null,null,"</felelős>",null,null,{"$f":"CHAR(9)&CHAR(9)&CHAR(9)&H52","v":"\t\t\t</felelős>"}]
[null,null,null,null,null,null,null,"</kapcsolatok>",null,null,{"$f":"CHAR(9)&CHAR(9)&H53","v":"\t\t</kapcsolatok>"}]
[null,null,null,null,null,null,null,"</eho_objektumok>",null,null,{"$f":"CHAR(9)&H54","v":"\t</eho_objektumok>"}]
[null,null,null,null,null,null,null,"</terv>",null,null,{"$f":"H55","v":"</terv>"}]

{"sheet":"Értékkészletek","index":1,"n_rows":8,"n_cols":7,"rows_kept":8,"cut":false,"hidden":false,"merged":[]}
["építési","Tervezett","Selejtezett","Igen","Tájékoztató","Nyílt árkos bemérés","állam"]
["használatbavételi","Újonnan megépített","Bontott","1990 előtti","Kivitelezési","Utólagos méréssel közvetlenül","önkormányzat"]
["fennmaradási","Meglévő saját","Üzemelő","Bérelt","Tervezési","Meglévő állományból szerkesztéssel utólagos beméréssel korrigált","gazdasági társaság"]
["bontási","Meglévő bérelt","Üzemen kívüli","Nem ismert",null,"Meglévő állományból szerkesztéssel"]
["adatszolgáltatási","Bontandó","Távlati terv"]
["változás bejelentési","Bontott","Tervezett"]
[null,"Meglévő bérelt adatszolgáltatás","Bontandó"]
[null,"Meglévő saját adatszolgáltatás"]